[Event "*** Titled Tuesday 3|2 Blitz"]
[Site "Chess.com"]
[Date "2015.12.01"]
[Round "4"]
[White "jefferyx"]
[Black "jlandaw"]
[Result "0-1"]
[WhiteElo "2541"]
[BlackElo "2366"]
[TimeControl "180+2"]
[EndTime "17:50:49 PST"]
[Termination "jlandaw won on time"]

1. b4 {[%clk 0:03:00.1]} 1... a5 {[%clk 0:02:58.8]} 2. b5 {[%clk 0:03:01.1]}
2... Nf6 {[%clk 0:02:59.9]} 3. Bb2 {[%clk 0:03:02.3]} 3... b6 {[%clk 0:02:59.2]}
4. e3 {[%clk 0:03:02.4]} 4... Bb7 {[%clk 0:03:00.5]} 5. Nf3 {[%clk 0:03:04]}
5... d6 {[%clk 0:03:01]} 6. Rg1 {[%clk 0:03:04.3]} 6... Nbd7 {[%clk 0:03:00.2]}
7. g4 {[%clk 0:03:05.4]} 7... h5 {[%clk 0:02:51.1]} 8. g5 {[%clk 0:03:06.1]}
8... Ng4 {[%clk 0:02:52.3]} 9. g6 {[%clk 0:02:48.5]} 9... fxg6 {[%clk 0:02:31]}
10. Bd3 {[%clk 0:02:41.2]} 10... Rh6 {[%clk 0:02:22.1]} 11. Ng5 {[%clk
0:01:39.1]} 11... e5 {[%clk 0:01:51.1]} 12. Rxg4 {[%clk 0:01:02.8]} 12... hxg4
{[%clk 0:01:49.7]} 13. Qxg4 {[%clk 0:01:04.7]} 13... Nf6 {[%clk 0:00:59.3]} 14.
Qg1 {[%clk 0:01:05.2]} 14... e4 {[%clk 0:00:45.9]} 15. Be2 {[%clk 0:01:02]}
15... Qe7 {[%clk 0:00:46.7]} 16. Nc3 {[%clk 0:01:02.9]} 16... O-O-O {[%clk
0:00:46.6]} 17. O-O-O {[%clk 0:01:03.9]} 17... d5 {[%clk 0:00:45.9]} 18. Kb1
{[%clk 0:00:47.7]} 18... Kb8 {[%clk 0:00:46.9]} 19. Qg3 {[%clk 0:00:42.8]} 19...
d4 {[%clk 0:00:40.3]} 20. exd4 {[%clk 0:00:40.8]} 20... Rxd4 {[%clk 0:00:42.2]}
21. Qe3 {[%clk 0:00:37.9]} 21... Qd7 {[%clk 0:00:39.8]} 22. Ka1 {[%clk
0:00:34.9]} 22... Bc5 {[%clk 0:00:38.5]} 23. Qf4 {[%clk 0:00:35.9]} 23... Bd6
{[%clk 0:00:36.3]} 24. Qe3 {[%clk 0:00:36.8]} 24... Be5 {[%clk 0:00:37.2]} 25.
f4 {[%clk 0:00:36.1]} 25... exf3 {[%clk 0:00:29.9]} 26. Nxf3 {[%clk 0:00:37.3]}
26... Ng4 {[%clk 0:00:27.2]} 27. Nxe5 {[%clk 0:00:35.4]} 27... Nxe3 {[%clk
0:00:23.6]} 28. Nxd7+ {[%clk 0:00:36.6]} 28... Rxd7 {[%clk 0:00:25.2]} 29. dxe3
{[%clk 0:00:38.5]} 29... Rxd1+ {[%clk 0:00:26.9]} 30. Bxd1 {[%clk 0:00:29.5]}
30... Rxh2 {[%clk 0:00:28.8]} 31. Kb1 {[%clk 0:00:26.3]} 31... g5 {[%clk
0:00:27.6]} 32. Kc1 {[%clk 0:00:26.9]} 32... Rf2 {[%clk 0:00:25.1]} 33. Ne2
{[%clk 0:00:14.8]} 33... Bf3 {[%clk 0:00:18.5]} 34. Ng3 {[%clk 0:00:16.1]} 34...
Bxd1 {[%clk 0:00:19.7]} 35. Kxd1 {[%clk 0:00:18]} 35... Rf3 {[%clk 0:00:21.1]}
36. Ne2 {[%clk 0:00:11.6]} 36... Rxe3 {[%clk 0:00:21.6]} 37. Bxg7 {[%clk
0:00:12.8]} 37... g4 {[%clk 0:00:19.9]} 38. Bd4 {[%clk 0:00:12.2]} 38... Rf3
{[%clk 0:00:17.6]} 39. Be5 {[%clk 0:00:08.5]} 39... Kc8 {[%clk 0:00:18.1]} 40.
Kd2 {[%clk 0:00:05.4]} 40... Kd7 {[%clk 0:00:18.4]} 41. Nd4 {[%clk 0:00:06.4]}
41... Ra3 {[%clk 0:00:19.2]} 42. Nc6 {[%clk 0:00:04.8]} 42... g3 {[%clk
0:00:15.3]} 43. Ke2 {[%clk 0:00:03.5]} 43... Rxa2 {[%clk 0:00:16.6]} 44. Bxg3
{[%clk 0:00:04.6]} 44... Rxc2+ {[%clk 0:00:16.2]} 45. Kd3 {[%clk 0:00:06.2]}
45... Rc5 {[%clk 0:00:09.1]} 46. Nd4 {[%clk 0:00:04.1]} 46... a4 {[%clk
0:00:10.6]} 47. Be1 {[%clk 0:00:05.3]} 47... a3 {[%clk 0:00:11]} 48. Nb3 {[%clk
0:00:03.6]} 48... Rxb5 {[%clk 0:00:10.9]} 49. Kc4 {[%clk 0:00:03.3]} 49... Rh5
{[%clk 0:00:09.9]} 50. Kb4 {[%clk 0:00:03.9]} 50... a2 {[%clk 0:00:09.1]} 51.
Ka3 {[%clk 0:00:04.7]} 51... Rh2 {[%clk 0:00:06]} 52. Bc3 {[%clk 0:00:05.8]}
52... c6 {[%clk 0:00:06.7]} 0-1

[Event "*** Titled Tuesday 3|2 Blitz"]
[Site "Chess.com"]
[Date "2015.12.01"]
[Round "4"]
[White "GianmarcoVaR"]
[Black "flubs"]
[Result "1-0"]
[WhiteElo "2339"]
[BlackElo "2179"]
[TimeControl "180+2"]
[EndTime "17:51:01 PST"]
[Termination "GianmarcoVaR won by resignation"]

1. d4 {[%clk 0:02:58.1]} 1... d5 {[%clk 0:03:00.3]} 2. Nf3 {[%clk 0:02:59.3]}
2... Nf6 {[%clk 0:02:58.5]} 3. c4 {[%clk 0:03:00.4]} 3... c6 {[%clk 0:03:00]} 4.
e3 {[%clk 0:03:01.8]} 4... e6 {[%clk 0:03:00.9]} 5. b3 {[%clk 0:03:02.6]} 5...
Nbd7 {[%clk 0:03:01.9]} 6. Bb2 {[%clk 0:03:02.9]} 6... Be7 {[%clk 0:03:00.4]} 7.
Bd3 {[%clk 0:03:04]} 7... O-O {[%clk 0:03:01.3]} 8. Qc2 {[%clk 0:03:04.2]} 8...
b6 {[%clk 0:03:02]} 9. O-O {[%clk 0:03:03.8]} 9... Bb7 {[%clk 0:03:03.1]} 10.
Nc3 {[%clk 0:03:05]} 10... Rc8 {[%clk 0:03:02.8]} 11. Rfd1 {[%clk 0:03:05]}
11... Qc7 {[%clk 0:03:02.6]} 12. Rac1 {[%clk 0:03:02.1]} 12... c5 {[%clk
0:03:02.4]} 13. dxc5 {[%clk 0:03:01.3]} 13... Nxc5 {[%clk 0:02:59.5]} 14. cxd5
{[%clk 0:03:00.6]} 14... exd5 {[%clk 0:02:50]} 15. Nb5 {[%clk 0:03:01.8]} 15...
Qb8 {[%clk 0:02:48]} 16. Be5 {[%clk 0:03:01.2]} 16... Nxd3 {[%clk 0:01:39.4]}
17. Qxd3 {[%clk 0:02:57.7]} 17... Rxc1 {[%clk 0:01:40.3]} 18. Bxb8 {[%clk
0:02:50.9]} 18... Rxd1+ {[%clk 0:01:40.5]} 19. Qxd1 {[%clk 0:02:51.8]} 19...
Rxb8 {[%clk 0:01:39.7]} 20. Nfd4 {[%clk 0:02:33.4]} 20... a6 {[%clk 0:01:34.5]}
21. Nf5 {[%clk 0:02:33.6]} 21... Bf8 {[%clk 0:01:34.9]} 22. Nbd4 {[%clk
0:02:19.8]} 22... Rc8 {[%clk 0:01:29]} 23. f3 {[%clk 0:02:19]} 23... Rc3 {[%clk
0:01:14.6]} 24. Qd2 {[%clk 0:02:19.8]} 24... Rc7 {[%clk 0:01:08.8]} 25. g4
{[%clk 0:02:19.9]} 25... g6 {[%clk 0:01:04.9]} 26. Ng3 {[%clk 0:02:18.7]} 26...
a5 {[%clk 0:00:59.6]} 27. Nge2 {[%clk 0:01:50.1]} 27... Ba6 {[%clk 0:00:54.9]}
28. h4 {[%clk 0:01:50.8]} 28... Bb4 {[%clk 0:00:50.8]} 29. Qd1 {[%clk
0:01:51.7]} 29... h6 {[%clk 0:00:42.8]} 30. Kf2 {[%clk 0:01:51.5]} 30... Nd7
{[%clk 0:00:35.7]} 31. Nf4 {[%clk 0:01:49.8]} 31... Bb7 {[%clk 0:00:26.4]} 32.
h5 {[%clk 0:01:41]} 32... g5 {[%clk 0:00:25.6]} 33. Nd3 {[%clk 0:01:40.2]} 33...
Bf8 {[%clk 0:00:22]} 34. Nf5 {[%clk 0:01:41.3]} 34... Ba6 {[%clk 0:00:21.1]} 35.
Ne1 {[%clk 0:01:41.3]} 35... Rc5 {[%clk 0:00:15.4]} 36. Qd4 {[%clk 0:01:35.6]}
36... f6 {[%clk 0:00:11.1]} 37. Qd2 {[%clk 0:01:06.3]} 37... Kf7 {[%clk
0:00:07.5]} 38. f4 {[%clk 0:01:03]} 38... Bb7 {[%clk 0:00:04.1]} 39. Nf3 {[%clk
0:01:02.8]} 39... Rc7 {[%clk 0:00:02.2]} 40. N3d4 {[%clk 0:01:01.8]} 40... Nc5
{[%clk 0:00:03.6]} 41. Ng3 {[%clk 0:01:01.4]} 41... Re7 {[%clk 0:00:03.6]} 42.
Ndf5 {[%clk 0:01:02.1]} 42... Ne4+ {[%clk 0:00:04.9]} 43. Nxe4 {[%clk
0:01:02.8]} 43... Rxe4 {[%clk 0:00:06.8]} 44. Nd6+ {[%clk 0:01:03.2]} 44... Bxd6
{[%clk 0:00:07.4]} 45. fxg5 {[%clk 0:00:56.9]} 45... fxg5 {[%clk 0:00:09.3]} 46.
Kf3 {[%clk 0:00:58.1]} 46... Bc5 {[%clk 0:00:10.5]} 47. Qc2 {[%clk 0:00:55]}
47... Rxe3+ {[%clk 0:00:11.6]} 48. Kg2 {[%clk 0:00:56.5]} 48... Re6 {[%clk
0:00:11.8]} 49. Qh7+ {[%clk 0:00:56.7]} 49... Kf6 {[%clk 0:00:13.3]} 50. Qxb7
{[%clk 0:00:51.3]} 50... d4 {[%clk 0:00:13.6]} 51. Qd5 {[%clk 0:00:48]} 51...
Rd6 {[%clk 0:00:14.1]} 52. Qf5+ {[%clk 0:00:48.3]} 52... Ke7 {[%clk 0:00:15.4]}
53. Qd3 {[%clk 0:00:48.2]} 53... Re6 {[%clk 0:00:16.8]} 54. Kf1 {[%clk
0:00:41.4]} 54... Kd6 {[%clk 0:00:17.5]} 55. Qf5 {[%clk 0:00:38.6]} 55... Ke7
{[%clk 0:00:16.3]} 56. Qd5 {[%clk 0:00:37.8]} 56... Rd6 {[%clk 0:00:16.4]} 57.
Qb7+ {[%clk 0:00:36.8]} 57... Ke6 {[%clk 0:00:15.6]} 58. Qe4+ {[%clk 0:00:28.9]}
58... Kd7 {[%clk 0:00:16.7]} 59. Qh7+ {[%clk 0:00:29.3]} 59... Kc6 {[%clk
0:00:16.8]} 60. Qe4+ {[%clk 0:00:29.5]} 60... Kc7 {[%clk 0:00:17.9]} 61. Qd3
{[%clk 0:00:29]} 61... Rf6+ {[%clk 0:00:17.8]} 62. Ke2 {[%clk 0:00:29.6]} 62...
Re6+ {[%clk 0:00:19.1]} 63. Kd1 {[%clk 0:00:30.3]} 63... Re3 {[%clk 0:00:19]}
64. Qh7+ {[%clk 0:00:31.1]} 64... Kb8 {[%clk 0:00:20.5]} 65. Qxh6 {[%clk
0:00:30.1]} 65... Re5 {[%clk 0:00:16]} 66. Qh8+ {[%clk 0:00:29.6]} 1-0

[Event "*** Titled Tuesday 3|2 Blitz"]
[Site "Chess.com"]
[Date "2015.12.01"]
[Round "4"]
[White "adypady02"]
[Black "Fh2411"]
[Result "1-0"]
[WhiteElo "2499"]
[BlackElo "2299"]
[TimeControl "180+2"]
[EndTime "17:51:38 PST"]
[Termination "adypady02 won on time"]

1. e4 {[%clk 0:03:01.5]} 1... e5 {[%clk 0:03:00.3]} 2. Nf3 {[%clk 0:03:01]} 2...
Nc6 {[%clk 0:03:01.5]} 3. Bb5 {[%clk 0:03:01.6]} 3... Nf6 {[%clk 0:03:02.2]} 4.
d3 {[%clk 0:03:00.3]} 4... Bc5 {[%clk 0:03:01.8]} 5. O-O {[%clk 0:03:00.2]} 5...
O-O {[%clk 0:02:50.9]} 6. Bxc6 {[%clk 0:02:58.9]} 6... bxc6 {[%clk 0:02:20.8]}
7. Nxe5 {[%clk 0:02:58.4]} 7... Re8 {[%clk 0:01:46]} 8. Nf3 {[%clk 0:02:58.7]}
8... d6 {[%clk 0:01:16.3]} 9. h3 {[%clk 0:02:57.7]} 9... h6 {[%clk 0:01:12]} 10.
Nc3 {[%clk 0:02:58.4]} 10... a5 {[%clk 0:01:12.8]} 11. b3 {[%clk 0:02:54.6]}
11... d5 {[%clk 0:01:04.4]} 12. e5 {[%clk 0:02:53.6]} 12... Nd7 {[%clk
0:01:04.8]} 13. d4 {[%clk 0:02:52.5]} 13... Bf8 {[%clk 0:01:02.5]} 14. Ne2
{[%clk 0:02:40.7]} 14... a4 {[%clk 0:00:58.9]} 15. Be3 {[%clk 0:02:37.1]} 15...
Ba6 {[%clk 0:00:49]} 16. Re1 {[%clk 0:02:35.5]} 16... c5 {[%clk 0:00:49.7]} 17.
Nf4 {[%clk 0:02:30.6]} 17... c6 {[%clk 0:00:45.2]} 18. Qd2 {[%clk 0:02:23.1]}
18... c4 {[%clk 0:00:43.2]} 19. b4 {[%clk 0:02:19.5]} 19... a3 {[%clk 0:00:32]}
20. c3 {[%clk 0:02:20.7]} 20... Nb6 {[%clk 0:00:31.1]} 21. Ne2 {[%clk 0:02:17]}
21... Bc8 {[%clk 0:00:31]} 22. Ng3 {[%clk 0:02:18.2]} 22... Na4 {[%clk
0:00:26.4]} 23. Nh2 {[%clk 0:02:18.7]} 23... Nb2 {[%clk 0:00:25.2]} 24. f4
{[%clk 0:02:15.1]} 24... Nd3 {[%clk 0:00:25]} 25. Rf1 {[%clk 0:02:16.6]} 25...
f5 {[%clk 0:00:25]} 26. Ne2 {[%clk 0:02:02.9]} 26... Qh4 {[%clk 0:00:17.3]} 27.
Nf3 {[%clk 0:02:02.8]} 27... Qd8 {[%clk 0:00:15.5]} 28. Nc1 {[%clk 0:02:03.9]}
28... Nb2 {[%clk 0:00:15.9]} 29. Kh2 {[%clk 0:02:02.9]} 29... Be6 {[%clk
0:00:15.4]} 30. Rg1 {[%clk 0:02:03.3]} 30... Qd7 {[%clk 0:00:14.1]} 31. Ne2
{[%clk 0:02:03.8]} 31... Kh8 {[%clk 0:00:14.3]} 32. Raf1 {[%clk 0:02:00.5]}
32... Nd3 {[%clk 0:00:15.3]} 33. Nc1 {[%clk 0:02:01.5]} 33... Nb2 {[%clk
0:00:15.6]} 34. Ne1 {[%clk 0:01:58.2]} 34... Reb8 {[%clk 0:00:15.8]} 35. Nc2
{[%clk 0:01:59.1]} 35... Qf7 {[%clk 0:00:11.1]} 36. Qe2 {[%clk 0:01:55.6]} 36...
Na4 {[%clk 0:00:08.2]} 37. Bd2 {[%clk 0:01:55.9]} 37... Nb6 {[%clk 0:00:09.2]}
38. g4 {[%clk 0:01:56.5]} 38... Nd7 {[%clk 0:00:09.3]} 39. Ne3 {[%clk
0:01:57.6]} 39... g6 {[%clk 0:00:09.6]} 40. Qg2 {[%clk 0:01:53.1]} 40... Be7
{[%clk 0:00:09]} 41. Ne2 {[%clk 0:01:54.4]} 41... Rg8 {[%clk 0:00:09]} 42. Ng3
{[%clk 0:01:55.8]} 42... Nf8 {[%clk 0:00:09.7]} 43. Bc1 {[%clk 0:01:55.1]} 43...
Nh7 {[%clk 0:00:10.4]} 44. Qc2 {[%clk 0:01:52.9]} 44... Bh4 {[%clk 0:00:11.4]}
45. Ne2 {[%clk 0:01:44.7]} 45... Nf8 {[%clk 0:00:10.2]} 46. Qd2 {[%clk
0:01:12.9]} 46... Nh7 {[%clk 0:00:10.8]} 47. Rf3 {[%clk 0:01:12.4]} 47... Rg7
{[%clk 0:00:09.8]} 48. Rff1 {[%clk 0:01:05]} 48... Rgg8 {[%clk 0:00:11.1]} 49.
Rg2 {[%clk 0:01:01.8]} 49... Rg7 {[%clk 0:00:12.2]} 50. Rfg1 {[%clk 0:00:59.1]}
50... Rgg8 {[%clk 0:00:13.4]} 51. Rd1 {[%clk 0:00:45.4]} 51... Qe7 {[%clk
0:00:14.1]} 52. Ng1 {[%clk 0:00:43.9]} 52... Qf7 {[%clk 0:00:12.3]} 53. Rf1
{[%clk 0:00:41.6]} 53... Rg7 {[%clk 0:00:11.2]} 54. Nf3 {[%clk 0:00:41.4]} 54...
Be7 {[%clk 0:00:12.3]} 55. Nd1 {[%clk 0:00:39.5]} 55... Rgg8 {[%clk 0:00:13.5]}
56. Rfg1 {[%clk 0:00:39.9]} 56... Rgf8 {[%clk 0:00:03.9]} 57. Rg3 {[%clk
0:00:36.7]} 57... Rg8 {[%clk 0:00:04.7]} 58. R1g2 {[%clk 0:00:36.6]} 58... Rgf8
{[%clk 0:00:06.1]} 59. Qe1 {[%clk 0:00:37.2]} 59... Rg8 {[%clk 0:00:07.7]} 60.
Qg1 {[%clk 0:00:33.7]} 60... Rgf8 {[%clk 0:00:07.7]} 61. Nf2 {[%clk 0:00:32.9]}
61... Rg8 {[%clk 0:00:07.6]} 62. Kh1 {[%clk 0:00:29.4]} 62... Rgf8 {[%clk
0:00:08.5]} 63. h4 {[%clk 0:00:22.5]} 63... fxg4 {[%clk 0:00:08]} 64. Nxg4
{[%clk 0:00:24]} 64... Bf5 {[%clk 0:00:08.2]} 65. Nxh6 {[%clk 0:00:25.1]} 65...
Qe6 {[%clk 0:00:09.1]} 66. Nxf5 {[%clk 0:00:26]} 66... Qxf5 {[%clk 0:00:10.4]}
67. Rxg6 {[%clk 0:00:25.4]} 67... Qh3+ {[%clk 0:00:11.6]} 68. Nh2 {[%clk
0:00:25.5]} 68... Bxh4 {[%clk 0:00:12.6]} 69. Rh6 {[%clk 0:00:26.3]} 69... Rg8
{[%clk 0:00:12.1]} 70. Rgg6 {[%clk 0:00:23]} 1-0

[Event "*** Titled Tuesday 3|2 Blitz"]
[Site "Chess.com"]
[Date "2015.12.01"]
[Round "4"]
[White "HansCoolNiemann"]
[Black "gauranga"]
[Result "0-1"]
[WhiteElo "2187"]
[BlackElo "2050"]
[TimeControl "180+2"]
[EndTime "17:51:45 PST"]
[Termination "gauranga won by checkmate"]

1. d4 {[%clk 0:03:01.9]} 1... b6 {[%clk 0:03:01.2]} 2. e4 {[%clk 0:03:01]} 2...
Bb7 {[%clk 0:03:02.8]} 3. Bd3 {[%clk 0:02:57.7]} 3... Nf6 {[%clk 0:03:02.8]} 4.
Nd2 {[%clk 0:02:55.3]} 4... c5 {[%clk 0:03:00.3]} 5. d5 {[%clk 0:02:54.3]} 5...
e5 {[%clk 0:02:59.4]} 6. Nc4 {[%clk 0:02:45.8]} 6... d6 {[%clk 0:02:57.1]} 7. a4
{[%clk 0:02:43.6]} 7... a6 {[%clk 0:02:57.1]} 8. Ne2 {[%clk 0:02:43.4]} 8...
Nbd7 {[%clk 0:02:54.1]} 9. Nc3 {[%clk 0:02:42.2]} 9... Be7 {[%clk 0:02:50.7]}
10. O-O {[%clk 0:02:40.8]} 10... O-O {[%clk 0:02:51.2]} 11. Be3 {[%clk
0:02:36.9]} 11... Ne8 {[%clk 0:02:50.4]} 12. f4 {[%clk 0:02:35.9]} 12... exf4
{[%clk 0:02:24.3]} 13. Bxf4 {[%clk 0:02:34.8]} 13... Qc7 {[%clk 0:02:25.9]} 14.
Qf3 {[%clk 0:02:32.1]} 14... Bf6 {[%clk 0:02:23.3]} 15. Qg3 {[%clk 0:02:31.3]}
15... Ne5 {[%clk 0:02:23.5]} 16. Bxe5 {[%clk 0:02:25.6]} 16... Bxe5 {[%clk
0:02:24.7]} 17. Qh4 {[%clk 0:02:20.4]} 17... Bc8 {[%clk 0:02:11.5]} 18. Nd1
{[%clk 0:02:15]} 18... Rb8 {[%clk 0:02:10.2]} 19. Nxe5 {[%clk 0:02:15]} 19...
dxe5 {[%clk 0:02:10.6]} 20. Ne3 {[%clk 0:02:16.9]} 20... Nd6 {[%clk 0:02:09.9]}
21. c3 {[%clk 0:02:11.2]} 21... b5 {[%clk 0:02:06.5]} 22. axb5 {[%clk
0:02:09.8]} 22... axb5 {[%clk 0:02:08.1]} 23. Qg3 {[%clk 0:02:05.1]} 23... f6
{[%clk 0:02:06]} 24. Qf2 {[%clk 0:01:49.5]} 24... c4 {[%clk 0:02:05.4]} 25. Bc2
{[%clk 0:01:47.7]} 25... Bd7 {[%clk 0:01:49.1]} 26. Ra6 {[%clk 0:01:38.2]} 26...
b4 {[%clk 0:01:23.1]} 27. Rfa1 {[%clk 0:01:34.7]} 27... bxc3 {[%clk 0:01:24.2]}
28. bxc3 {[%clk 0:01:35.6]} 28... Rb2 {[%clk 0:01:24.5]} 29. Ra7 {[%clk
0:01:28.7]} 29... Qc8 {[%clk 0:01:22.4]} 30. Qf1 {[%clk 0:01:21.5]} 30... Qc5
{[%clk 0:01:16.1]} 31. Qc1 {[%clk 0:00:21.5]} 31... Rxc2 {[%clk 0:01:16]} 32.
Qxc2 {[%clk 0:00:23.4]} 32... Qxe3+ {[%clk 0:01:17.2]} 33. Qf2 {[%clk
0:00:24.6]} 33... Qxf2+ {[%clk 0:01:12.4]} 34. Kxf2 {[%clk 0:00:26.5]} 34... Be8
{[%clk 0:00:36.2]} 35. Ke3 {[%clk 0:00:24.1]} 35... Bg6 {[%clk 0:00:37.2]} 36.
Rd7 {[%clk 0:00:21.9]} 36... Nxe4 {[%clk 0:00:37.8]} 37. Raa7 {[%clk 0:00:23.1]}
37... Nxc3 {[%clk 0:00:37.2]} 38. h4 {[%clk 0:00:18.3]} 38... Bf7 {[%clk
0:00:32.5]} 39. d6 {[%clk 0:00:17.4]} 39... Nd5+ {[%clk 0:00:32.1]} 40. Ke2
{[%clk 0:00:14.4]} 40... f5 {[%clk 0:00:29.4]} 41. h5 {[%clk 0:00:10.1]} 41...
e4 {[%clk 0:00:28.2]} 42. h6 {[%clk 0:00:10.2]} 42... gxh6 {[%clk 0:00:29.3]}
43. Kd2 {[%clk 0:00:10.8]} 43... f4 {[%clk 0:00:29.6]} 44. Rab7 {[%clk 0:00:10]}
44... h5 {[%clk 0:00:29.2]} 45. Kd1 {[%clk 0:00:03.7]} 45... h4 {[%clk
0:00:30.5]} 46. Ke1 {[%clk 0:00:04.7]} 46... h3 {[%clk 0:00:29.9]} 47. gxh3
{[%clk 0:00:05.4]} 47... e3 {[%clk 0:00:30.8]} 48. Rb5 {[%clk 0:00:05.4]} 48...
f3 {[%clk 0:00:28.9]} 49. Re7 {[%clk 0:00:03.7]} 49... Nxe7 {[%clk 0:00:20.2]}
50. dxe7 {[%clk 0:00:05.6]} 50... Re8 {[%clk 0:00:21.8]} 51. Re5 {[%clk
0:00:06]} 51... e2 {[%clk 0:00:22.1]} 52. Kf2 {[%clk 0:00:06.7]} 52... Bg6
{[%clk 0:00:18.4]} 53. Kxf3 {[%clk 0:00:06.9]} 53... Kf7 {[%clk 0:00:19.8]} 54.
Kf2 {[%clk 0:00:04.1]} 54... Rxe7 {[%clk 0:00:21]} 55. Rxe7+ {[%clk 0:00:05.1]}
55... Kxe7 {[%clk 0:00:22.2]} 56. Kxe2 {[%clk 0:00:07]} 56... Kf6 {[%clk
0:00:23.6]} 57. Ke3 {[%clk 0:00:08.9]} 57... Kg5 {[%clk 0:00:24.8]} 58. Kd4
{[%clk 0:00:10.8]} 58... Bd3 {[%clk 0:00:25.1]} 59. Ke3 {[%clk 0:00:11.5]} 59...
Kh4 {[%clk 0:00:26.4]} 60. Kf2 {[%clk 0:00:13.4]} 60... Kxh3 {[%clk 0:00:27.8]}
61. Kf3 {[%clk 0:00:15.3]} 61... h5 {[%clk 0:00:28.3]} 62. Ke3 {[%clk
0:00:17.2]} 62... Kg2 {[%clk 0:00:29]} 63. Kf4 {[%clk 0:00:17.8]} 63... h4
{[%clk 0:00:30.4]} 64. Ke3 {[%clk 0:00:19.3]} 64... h3 {[%clk 0:00:31.8]} 65.
Kd2 {[%clk 0:00:21.2]} 65... h2 {[%clk 0:00:33.1]} 66. Kc3 {[%clk 0:00:23.1]}
66... h1=Q {[%clk 0:00:34.4]} 67. Kb4 {[%clk 0:00:25]} 67... Qb1+ {[%clk
0:00:34.4]} 68. Kc3 {[%clk 0:00:26.9]} 68... Qb3+ {[%clk 0:00:35]} 69. Kd4
{[%clk 0:00:28.8]} 69... c3 {[%clk 0:00:35.7]} 70. Kc5 {[%clk 0:00:29.6]} 70...
c2 {[%clk 0:00:36.9]} 71. Kd6 {[%clk 0:00:30.4]} 71... c1=Q {[%clk 0:00:37.8]}
72. Ke5 {[%clk 0:00:32.3]} 72... Qe3+ {[%clk 0:00:37.6]} 73. Kf6 {[%clk
0:00:34.2]} 73... Qbe6+ {[%clk 0:00:38.6]} 74. Kg7 {[%clk 0:00:35.6]} 74...
Q3h6# {[%clk 0:00:39.5]} 0-1

[Event "*** Titled Tuesday 3|2 Blitz"]
[Site "Chess.com"]
[Date "2015.12.01"]
[Round "4"]
[White "dretch"]
[Black "MITerryble"]
[Result "0-1"]
[WhiteElo "2446"]
[BlackElo "2607"]
[TimeControl "180+2"]
[EndTime "17:51:56 PST"]
[Termination "MITerryble won by resignation"]

1. d4 {[%clk 0:03:01.9]} 1... e6 {[%clk 0:02:59.4]} 2. c4 {[%clk 0:03:02.6]}
2... Bb4+ {[%clk 0:02:59.8]} 3. Bd2 {[%clk 0:03:01]} 3... Qe7 {[%clk 0:03:00.8]}
4. g3 {[%clk 0:02:59.8]} 4... Nf6 {[%clk 0:02:59.2]} 5. Bg2 {[%clk 0:03:00.1]}
5... Nc6 {[%clk 0:03:00.1]} 6. Nf3 {[%clk 0:02:59.8]} 6... Bxd2+ {[%clk
0:03:00.2]} 7. Qxd2 {[%clk 0:02:56.1]} 7... Ne4 {[%clk 0:03:00.7]} 8. Qc2 {[%clk
0:02:56.9]} 8... Qb4+ {[%clk 0:03:01.5]} 9. Kf1 {[%clk 0:02:56.8]} 9... d5
{[%clk 0:03:02.3]} 10. cxd5 {[%clk 0:02:39.3]} 10... exd5 {[%clk 0:03:02.2]} 11.
Nc3 {[%clk 0:02:40.8]} 11... Nxc3 {[%clk 0:02:58.2]} 12. bxc3 {[%clk 0:02:38.1]}
12... Qd6 {[%clk 0:02:56.1]} 13. e4 {[%clk 0:02:24]} 13... O-O {[%clk
0:01:46.8]} 14. Ng5 {[%clk 0:01:40.3]} 14... Qg6 {[%clk 0:01:38.2]} 15. h4
{[%clk 0:01:41.2]} 15... h6 {[%clk 0:01:35.5]} 16. Nh3 {[%clk 0:01:42]} 16...
Bxh3 {[%clk 0:01:26.5]} 17. Rxh3 {[%clk 0:01:41.8]} 17... dxe4 {[%clk
0:01:23.4]} 18. h5 {[%clk 0:01:32]} 18... Qd6 {[%clk 0:01:17.8]} 19. Bxe4 {[%clk
0:01:24.8]} 19... Rae8 {[%clk 0:01:13.4]} 20. Rh4 {[%clk 0:01:22.9]} 20... Na5
{[%clk 0:01:12]} 21. Rb1 {[%clk 0:01:11.9]} 21... b6 {[%clk 0:01:11.5]} 22. Bd3
{[%clk 0:01:09.8]} 22... Re7 {[%clk 0:01:02.3]} 23. c4 {[%clk 0:00:58.5]} 23...
Nc6 {[%clk 0:00:58]} 24. Qc3 {[%clk 0:00:54.1]} 24... Rd8 {[%clk 0:00:58.5]} 25.
Rd1 {[%clk 0:00:49.6]} 25... Qb4 {[%clk 0:00:37.2]} 26. Qxb4 {[%clk 0:00:49.3]}
26... Nxb4 {[%clk 0:00:37.9]} 27. Bb1 {[%clk 0:00:50.9]} 27... Nc6 {[%clk
0:00:25.5]} 28. d5 {[%clk 0:00:49]} 28... Ne5 {[%clk 0:00:24.3]} 29. Re4 {[%clk
0:00:49.1]} 29... Rde8 {[%clk 0:00:25.4]} 30. Rde1 {[%clk 0:00:48.1]} 30... Kf8
{[%clk 0:00:26.4]} 31. R1e3 {[%clk 0:00:43.9]} 31... Nd7 {[%clk 0:00:24.1]} 32.
Rxe7 {[%clk 0:00:35.8]} 32... Rxe7 {[%clk 0:00:26]} 33. Ra3 {[%clk 0:00:23]}
33... a5 {[%clk 0:00:25.4]} 34. Bf5 {[%clk 0:00:24]} 34... Nc5 {[%clk
0:00:23.8]} 35. Rf3 {[%clk 0:00:24.7]} 35... Ke8 {[%clk 0:00:22.4]} 36. Rf4
{[%clk 0:00:20]} 36... Re5 {[%clk 0:00:20.2]} 37. g4 {[%clk 0:00:18.4]} 37...
Ke7 {[%clk 0:00:21.2]} 38. Bc2 {[%clk 0:00:19.6]} 38... f6 {[%clk 0:00:17.6]}
39. Rf3 {[%clk 0:00:18.6]} 39... Kd6 {[%clk 0:00:18.5]} 40. Rc3 {[%clk
0:00:15.5]} 40... Re7 {[%clk 0:00:16.2]} 41. f4 {[%clk 0:00:15.2]} 41... Ne4
{[%clk 0:00:16]} 42. Rd3 {[%clk 0:00:08.8]} 42... Kc5 {[%clk 0:00:14]} 43. Bb3
{[%clk 0:00:09.1]} 43... Nd6 {[%clk 0:00:14.5]} 44. Kf2 {[%clk 0:00:07.5]} 44...
Kb4 {[%clk 0:00:12.1]} 45. Kf3 {[%clk 0:00:05.4]} 45... Re1 {[%clk 0:00:11]} 46.
g5 {[%clk 0:00:03.6]} 46... fxg5 {[%clk 0:00:11.7]} 47. fxg5 {[%clk 0:00:04.8]}
47... hxg5 {[%clk 0:00:12.4]} 48. Rd4 {[%clk 0:00:06.1]} 48... Rh1 {[%clk
0:00:11]} 49. Kg4 {[%clk 0:00:02.5]} 49... Rg1+ {[%clk 0:00:12.1]} 50. Kf3
{[%clk 0:00:04.1]} 50... a4 {[%clk 0:00:12.1]} 51. c5+ {[%clk 0:00:04.5]} 51...
Kxc5 {[%clk 0:00:13.5]} 52. Rxa4 {[%clk 0:00:06.4]} 52... Rf1+ {[%clk
0:00:11.9]} 53. Kg4 {[%clk 0:00:07.6]} 53... Rg1+ {[%clk 0:00:13]} 54. Kf3
{[%clk 0:00:09.2]} 54... b5 {[%clk 0:00:12.3]} 55. Ra6 {[%clk 0:00:10]} 55...
Kd4 {[%clk 0:00:11]} 56. Rc6 {[%clk 0:00:10.7]} 56... Nf5 {[%clk 0:00:05.3]} 57.
Rxc7 {[%clk 0:00:10.3]} 57... Ke5 {[%clk 0:00:06.6]} 58. Kf2 {[%clk 0:00:09.5]}
58... Rb1 {[%clk 0:00:04.7]} 59. Rf7 {[%clk 0:00:10]} 59... Rb2+ {[%clk
0:00:05.7]} 60. Kf3 {[%clk 0:00:11]} 60... Rd2 {[%clk 0:00:06.2]} 61. Rf8 {[%clk
0:00:11.3]} 61... Rd3+ {[%clk 0:00:07]} 62. Kf2 {[%clk 0:00:12.3]} 62... Rd2+
{[%clk 0:00:08]} 63. Kf3 {[%clk 0:00:13.4]} 63... Rd3+ {[%clk 0:00:08.8]} 64.
Kf2 {[%clk 0:00:15]} 64... Rh3 {[%clk 0:00:06.9]} 65. Bd1 {[%clk 0:00:12.3]}
65... Rh2+ {[%clk 0:00:05.2]} 66. Kg1 {[%clk 0:00:13.5]} 66... Rxa2 {[%clk
0:00:05.7]} 67. Bg4 {[%clk 0:00:14]} 67... Ne3 {[%clk 0:00:06.7]} 68. Be6 {[%clk
0:00:12.9]} 68... g4 {[%clk 0:00:05.6]} 69. Rf7 {[%clk 0:00:13.4]} 69... g3
{[%clk 0:00:06.7]} 70. Rf1 {[%clk 0:00:07.8]} 70... Nxf1 {[%clk 0:00:07.5]} 71.
Kxf1 {[%clk 0:00:09.7]} 71... b4 {[%clk 0:00:08.4]} 0-1